[Event "ESP-ch U2000 2024"]
[Site "Albacete"]
[Date "2024.08.28"]
[Round "3.3"]
[White "Sanjuan Garcia, Miguel"]
[Black "Penarrubia Blasco, Jose Alfredo"]
[Result "1-0"]
[ECO "C53"]
[WhiteElo "1963"]
[BlackElo "1891"]
[Annotator "TA"]
[PlyCount "77"]
[EventDate "2024.08.27"]
[EventType "swiss"]
[EventCountry "ESP"]
[SourceTitle "playchess.com"]
[Source "ChessBase"]
[SourceQuality "1"]
[TimeControl "5400+30"]

{[%evp 9,77,71,150,150,152,152,167,153,166,114,136,142,139,111,161,102,110,97,115,64,72,7,4,0,161,7,5,7,22,16,45,43,47,45,58,54,56,60,180,177,177,175,150,151,185,181,287,275,346,350,350,298,390,265,740,604,756,764,857,845,889,601,1037,1016,2626,2086,2368,2924,5078,4770]} 1. e4 {[%emt 0:00:01]} e5 {[%emt 0:01:44]} 2. Nf3 {[%emt 0:00:09]} Nc6 {[%emt 0:00:07]} 3. Bc4 {[%emt 0:00:09]} Bc5 {[%emt 0:00:39]} 4. c3 {[%emt 0:00:12]} Qf6 {[%emt 0:02:38]} 5. d4 {[%emt 0:00:12]} Bd6 {[%emt 0:05:14]} (5... exd4 $142 6. e5 Nxe5) 6. O-O {[%emt 0:04:53]} h6 {[%emt 0:00:23]} 7. Be3 {[%emt 0:01:43]} Nge7 {[%emt 0:00:17][%cal Bg8e7,Be7g6,Bg6e5][%mdl 32]} 8. Nbd2 {[%emt 0:06:49] White is clearly better.} Ng6 {[%emt 0:00:53]} 9. dxe5 {[%emt 0:01:47]} (9. Bb3 $18) 9... Ncxe5 {[%emt 0:00:27]} 10. Nxe5 {[%emt 0:00:48]} Nxe5 {[%emt 0:06:54]} 11. Bd4 {[%emt 0:07:13] f4 would now be deadly.} g5 {[%emt 0:06:06] [#]} (11... Qe7 $16 {keeps fighting.}) 12. f4 {[%emt 0:10:33]} gxf4 $16 {[%emt 0:00:47]} 13. g3 {[%emt 0:01:37]} Rg8 {[%emt 0:05:13]} 14. Kh1 {[%emt 0:00:55]} (14. Bb3 $1 $16) 14... Qg6 $14 {[%emt 0:00:17]} ({But not} 14... Qg5 $2 15. Nf3 Nxf3 16. Qxf3 $18) 15. Bxe5 {[%emt 0:06:57]} (15. Bb3 $16) 15... Bxe5 $11 {[%emt 0:00:18]} 16. Qe2 {[%emt 0:00:02]} Qg4 {[%emt 0:09:18] [#]} (16... fxg3 $2 17. Bxf7+ Qxf7 18. Rxf7 g2+ 19. Kg1 Kxf7 20. Qh5+ Rg6 21. Qxe5 $18) (16... b5 $1 $11 17. Bb3 Bb7 (17... fxg3 $2 18. Bxf7+ Qxf7 19. Rxf7 $18)) 17. gxf4 $2 {[%emt 0:08:19]} (17. Nf3 $1 $18 Rg5 18. Bxf7+ (18. Nxg5 Qxe2 19. Bxe2 hxg5 $16) 18... Ke7 19. Bc4) 17... Qxe2 $1 {[%emt 0:01:59]} (17... Bxf4 18. Rg1 Qxe2 19. Rxg8+ Ke7 20. Bxe2 $18) 18. Bxe2 {[%emt 0:01:05]} Bd6 {[%emt 0:00:08]} 19. Nc4 {[%emt 0:04:01][%cal Bd2c4,Bc4e3,Be3f5][%mdl 32]} Be7 {[%emt 0:02:56]} 20. Ne3 {[%emt 0:02:42]} d6 {[%emt 0:03:00]} 21. Rg1 {[%emt 0:02:48]} Rxg1+ {[%emt 0:06:11]} 22. Rxg1 {[%emt 0:00:02]} Kf8 {[%emt 0:00:10] Dodges Rg8+} 23. Bg4 {[%emt 0:10:02]} Ke8 {[%emt 0:09:18] Black is now going downhill.} (23... Bh4 $14 24. Rg2 Bf6) 24. Bxc8 $18 {[%emt 0:01:37]} Rxc8 {[%emt 0:00:02][%mdl 4096] Endgame. [#] KRB-KRN} 25. Nf5 $1 {[%emt 0:00:20]} Bf8 {[%emt 0:00:35]} 26. Rg8 {[%emt 0:01:25] White has more active pieces.} Kd7 {[%emt 0:01:20]} 27. Kg2 {[%emt 0:01:20]} f6 {[%emt 0:03:27]} (27... b5 $142 28. Kf3 a5) 28. Rh8 {[%emt 0:05:38]} Ke6 {[%emt 0:01:52]} 29. Nxh6 {[%emt 0:03:34]} d5 {[%emt 0:00:19]} 30. f5+ {[%emt 0:02:52]} Ke5 {[%emt 0:01:33]} 31. Ng4+ {[%emt 0:00:57]} Kd6 $2 {[%emt 0:08:10]} (31... Kf4) 32. Nxf6 {[%emt 0:03:02] White is clearly winning.} dxe4 {[%emt 0:00:31]} 33. Nh7 {[%emt 0:00:57]} Re8 {[%emt 0:03:01]} 34. Rxf8 {[%emt 0:01:13]} Re7 {[%emt 0:00:08]} 35. Rf6+ {[%emt 0:01:00]} Kd5 {[%emt 0:00:16]} 36. Ng5 {[%emt 0:00:40]} Kc4 {[%emt 0:00:46]} 37. Re6 {[%emt 0:00:29]} Rg7 {[%emt 0:00:01]} 38. Rxe4+ {[%emt 0:00:23]} Kd3 {[%emt 0:00:04]} 39. h4 {[%emt 0:00:33] Weighted Error Value: White=0.38/Black=0.38.  Loses game:     	---       	Black=1      Mistake:       	White=5     	Black=4      Inaccurate:     	White=1     	Black=2      OK:         	White=10    	Black=6      Best:        	White=2     	Black=2      Strong:       	---       	Black=1} 1-0

[Event "ESP-ch U2000 2024"]
[Site "Albacete"]
[Date "2024.08.28"]
[Round "3.4"]
[White "Salazar Romero, Abel"]
[Black "Garcia Almeida, Aitana Maria"]
[Result "1-0"]
[ECO "A80"]
[WhiteElo "1937"]
[BlackElo "1878"]
[Annotator "TA"]
[PlyCount "79"]
[EventDate "2024.08.27"]
[EventType "swiss"]
[EventCountry "ESP"]
[SourceTitle "playchess.com"]
[Source "ChessBase"]
[SourceQuality "1"]
[TimeControl "5400+30"]

{[%evp 9,79,31,35,28,42,29,71,29,34,14,8,0,0,0,10,0,78,66,81,71,88,72,74,78,84,50,262,256,247,250,312,323,320,273,289,286,296,275,541,537,530,523,854,173,300,304,300,110,130,125,131,106,176,114,111,6,150,185,774,730,762,772,718,617,933,918,1047,1029,1188,1197,1734,1733]} 1. d4 {[%emt 0:00:03]} f5 {[%emt 0:00:14]} 2. Bg5 {[%emt 0:00:11]} Nf6 {[%emt 0:02:26]} 3. Bxf6 {[%emt 0:00:19]} exf6 {[%emt 0:00:16]} 4. e3 {[%emt 0:00:10]} d5 {[%emt 0:02:21]} 5. Bd3 {[%emt 0:01:15]} g6 {[%emt 0:00:16]} 6. Ne2 {[%emt 0:00:18]} Nc6 {[%emt 0:00:40]} 7. a3 {[%emt 0:01:36]} Bh6 {[%emt 0:01:51]} 8. b4 {[%emt 0:03:49] White is better.} Be6 {[%emt 0:02:16]} 9. Nbc3 {[%emt 0:01:11]} O-O {[%emt 0:00:51]} 10. h4 {[%emt 0:02:06]} Qd7 {[%emt 0:15:46]} 11. g3 {[%emt 0:00:39][%cal Bg2g3,Bg3f4][%mdl 32]} Rae8 {[%emt 0:04:52]} 12. Qb1 {[%emt 0:11:30]} f4 {[%emt 0:03:35]} 13. gxf4 $16 {[%emt 0:00:29]} (13. Nxf4 Bg4 $11) 13... Bg4 {[%emt 0:01:21]} 14. Qb3 {[%emt 0:02:18]} (14. Kd2 {with more complications.} Kh8 15. Qg1 Bf3 16. Rh2) 14... Kh8 {[%emt 0:21:26]} 15. O-O-O {[%emt 0:01:00]} (15. Nxd5 $2 Bf3 16. Nxc7 Qxc7 $17 (16... Bxh1 17. Nxe8 Rxe8 18. O-O-O $15)) 15... Bf3 {[%emt 0:08:22]} 16. Rhg1 {[%emt 0:00:19]} Ne7 {[%emt 0:04:09]} 17. Rg3 {[%emt 0:02:20]} Be4 {[#]} 18. Nxe4 $18 {[%emt 0:01:10]} dxe4 {[%emt 0:01:11]} 19. Bxe4 {[%emt 0:01:03]} Nf5 {[%emt 0:00:02]} 20. Bxf5 {[%emt 0:00:08]} (20. Bxb7 Nxg3 21. Nxg3 (21. fxg3 c6 $16) 21... c6) 20... Qxf5 {[%emt 0:00:03]} 21. Qd3 {[%emt 0:01:42] Strongly threatening Qxf5.} Qd5 {[%emt 0:01:09]} 22. c4 {[%emt 0:00:37]} Qh5 {[%emt 0:01:39]} 23. Rh3 {[%emt 0:09:59]} g5 $2 {[%emt 0:00:37]} (23... a5 {might work better.} 24. b5 c6) 24. Ng3 {[%emt 0:02:22]} Qg4 {[%emt 0:02:36]} 25. Qf5 {[%emt 0:00:09]} Qf3 {[%emt 0:00:20][%cal Rg5f4]} 26. Nh1 $2 {[%emt 0:13:06]} (26. hxg5 Qxf2 27. Ne4 (27. gxh6 Qxe3+ 28. Kb2 a5 $18) 27... fxg5 28. Qxf8+ (28. Nxf2 Rxf5 29. Rxh6 Rxe3 $18) 28... Bxf8 29. Nxf2) 26... Qc6 {[%emt 0:01:00]} (26... Qg2 $142 27. Rg3 Qc6) 27. hxg5 {[%emt 0:04:02]} (27. fxg5 $6 Qxc4+ 28. Qc2 Qe6 $18 (28... Qxc2+ $2 29. Kxc2 fxg5 30. hxg5 $18)) 27... fxg5 {[%emt 0:02:05]} 28. Qd5 {[%emt 0:08:50]} (28. Qb5 $18 {has better winning chances. Qxc6 is the strong threat.} Qf6 29. f5 (29. Qxb7 gxf4 30. e4 Qe6 $14) (29. fxg5 Bxg5 30. Kb2 b6 $18)) 28... Qa6 $16 {[%emt 0:06:07] [#]} 29. Kb2 $1 {[%emt 0:00:32]} ({Resist} 29. fxg5 Qxa3+ 30. Kd2 Bxg5 $11) 29... gxf4 {[%emt 0:00:26]} 30. e4 {[%emt 0:00:30] White is more active.} Qg6 {[%emt 0:00:25]} (30... Bg7 $16) 31. e5 {[%emt 0:05:44]} ({And not} 31. Qxb7 Rxe4 32. Rhd3 (32. Qxa7 {gets mated.} Re2+ 33. Ka1 Qc2) 32... Re1 $11) (31. Qh5 $18 Re6 32. Qxg6 Rxg6 33. Rh5) 31... Bg7 {[%emt 0:01:54]} 32. Qxb7 {[%emt 0:00:58]} ({White should play} 32. c5 $16) 32... Qf5 {[%emt 0:01:50]} (32... Rd8 $11) 33. Qf3 {[%emt 0:00:35] Hoping for Qd3.} Rxe5 $2 {[%emt 0:01:38]} (33... Rd8) 34. dxe5 $18 {[%emt 0:06:22] White is clearly winning.} Qxe5+ {[%emt 0:00:01]} 35. Kb3 {[%emt 0:00:13]} a5 {[%emt 0:02:11]} 36. Rb1 {[%emt 0:02:05]} Rd8 {[%emt 0:03:57]} 37. Rh5 {[%emt 0:05:08][%cal Bh3h5,Bh5a5,Ba5a8][%mdl 32] Dodges Qf5} Qe8 {[%emt 0:02:28]} 38. Rxa5 {[%emt 0:00:30]} Qg6 {[%emt 0:01:17]} 39. Rd1 {[%emt 0:00:07]} Rf8 {[%emt 0:02:43]} 40. Ra8 {[%emt 0:00:18] Weighted Error Value: White=0.49/Black=0.54.  Loses game:     	---       	Black=1      Missed win:     	White=1     	---        Mistake:       	White=3     	Black=6      Inaccurate:     	White=2     	Black=2      OK:         	White=7     	Black=7      Best:        	White=1     	Black=1      Strong:       	White=1     	---} 1-0

[Event "ESP-ch U2000 2024"]
[Site "Albacete"]
[Date "2024.08.28"]
[Round "3.5"]
[White "Perez Travieso, Saul"]
[Black "Lopez Sanchez, Ivan"]
[Result "1-0"]
[ECO "D35"]
[WhiteElo "1933"]
[BlackElo "1725"]
[Annotator "TA"]
[PlyCount "71"]
[EventDate "2024.08.27"]
[EventType "swiss"]
[EventCountry "ESP"]
[SourceTitle "playchess.com"]
[Source "ChessBase"]
[SourceQuality "1"]
[TimeControl "5400+30"]

{[%evp 17,71,31,30,32,35,0,62,29,40,13,67,0,0,0,12,0,79,64,66,29,79,78,86,70,177,175,191,185,208,208,293,267,264,259,370,268,430,359,451,452,496,504,1020,993,1105,989,2188,1980,29993,29987,29995,29996,29996,29997,29997,29998]} 1. c4 {[%emt 0:00:03]} e6 {[%emt 0:00:20]} 2. Nc3 {[%emt 0:00:40]} d5 {[%emt 0:00:46]} 3. cxd5 {[%emt 0:00:23]} exd5 {[%emt 0:00:09]} 4. d4 {[%emt 0:00:05]} Nf6 {[%emt 0:00:27]} 5. Bg5 {[%emt 0:00:07]} Nbd7 {[%emt 0:01:16]} 6. e3 {[%emt 0:00:15]} Be7 {[%emt 0:00:11]} 7. Bd3 {[%emt 0:00:39]} O-O {[%emt 0:01:24]} 8. Nge2 {[%emt 0:01:17]} b6 {[%emt 0:02:10]} 9. O-O {[%emt 0:00:39]} Bb7 {[%emt 0:01:31]} 10. a4 {[%emt 0:03:22]} c5 {[%emt 0:01:54]} 11. Rc1 {[%emt 0:05:36]} c4 {[%emt 0:05:45]} ({Better is} 11... h6 $11 12. Bh4 c4) 12. Bb1 {[%emt 0:00:12] White is slightly better.} Re8 {[%emt 0:00:28]} 13. Qc2 {[%emt 0:04:08]} Nf8 {[%emt 0:00:40]} (13... h6 $11 14. Bh4 a6) 14. f3 {[%emt 0:08:13] White is more active.} ({White should play} 14. b3 $14) 14... h6 $11 {[%emt 0:05:40]} 15. Bh4 {[%emt 0:03:17]} Ng6 {[%emt 0:02:10]} 16. Bf2 {[%emt 0:02:21]} Bf8 {[%emt 0:01:53]} (16... Qd7 $1 $11) 17. Ng3 {[%emt 0:04:34]} Bd6 {[%emt 0:06:08]} 18. Rce1 {[%emt 0:04:33]} Bxg3 {[%emt 0:04:08]} (18... Qd7 $11) 19. Bxg3 $16 {[%emt 0:01:13] Black is now going downhill.} a6 {[%emt 0:02:43][%cal Ba7a6,Ba6b5][%mdl 32] Inhibits Nb5.} 20. Qd2 {[%emt 0:06:38]} Nf8 {[%emt 0:04:18]} (20... Nh5 $14) 21. e4 $18 {[%emt 0:06:01][%cal Be3e4,Be4e5][%mdl 32]} Qd7 {[%emt 0:01:11]} 22. e5 {[%emt 0:01:19]} N6h7 {[%emt 0:00:37]} 23. f4 {[%emt 0:01:48][%cal Bf3f4,Bf4f5][%mdl 32]} b5 {[%emt 0:00:19]} (23... f5 {was necessary.} 24. Nd1 g6) 24. axb5 {[%emt 0:00:30]} axb5 {[%emt 0:00:02]} 25. f5 {[%emt 0:02:55] aiming for f6.} Ba6 {[%emt 0:12:00]} (25... b4 $142) 26. Bf4 {[%emt 0:08:21] Black is weak on the dark squares} Qa7 $2 {[%emt 0:08:51] [#]} (26... b4 27. Ne2 Rec8) 27. Rf3 {[%emt 0:12:26]} f6 {[%emt 0:03:49]} 28. e6 {[%emt 0:03:52]} (28. Nxd5 Ng5 29. Bxg5 hxg5) 28... Ng5 {[%emt 0:00:18]} 29. Rg3 {[%emt 0:00:37]} (29. Bxg5 hxg5 30. Rfe3 (30. Nxd5 Rad8 $18) 30... Bb7 31. Nxb5 Qb6 $18) 29... Ngxe6 {[%emt 0:07:50]} (29... Rad8 $142 30. Ne2 Bc8) 30. fxe6 {[%emt 0:00:10]} Nxe6 {[%emt 0:00:01]} 31. Bxh6 {[%emt 0:01:56]} g5 {[%emt 0:00:47]} 32. Nxd5 {[%emt 0:06:03]} Nxd4 {[%emt 0:04:31] [#]} 33. Rxg5+ $1 {[%emt 0:00:12][%mdl 512] White mates.} fxg5 {[%emt 0:01:04]} (33... Kh8 34. Bg7+) 34. Qxg5+ {[%emt 0:00:04]} Kh8 {[%emt 0:00:19]} 35. Qf6+ {[%emt 0:00:03]} Kg8 {[%emt 0:00:09]} 36. Qg6+ {Weighted Error Value: White=0.19 (very precise) /Black=0.67.  Mistake:       	White=1     	Black=9      Inaccurate:     	White=4     	---        OK:         	White=7     	Black=2} 1-0

[Event "ESP-ch U2000 2024"]
[Site "Albacete"]
[Date "2024.08.28"]
[Round "3.6"]
[White "Perez Pinazo, Jose Oscar"]
[Black "Marquez Leon, Juan Antonio"]
[Result "1/2-1/2"]
[ECO "B10"]
[WhiteElo "1688"]
[BlackElo "1916"]
[Annotator "TA"]
[PlyCount "96"]
[EventDate "2024.08.27"]
[EventType "swiss"]
[EventCountry "ESP"]
[SourceTitle "playchess.com"]
[Source "ChessBase"]
[SourceQuality "1"]
[TimeControl "5400+30"]

{[%evp 12,96,13,0,24,19,37,0,5,-17,-18,-17,-8,-15,-10,-22,-25,-31,-24,-26,-19,-26,-22,-16,-13,-25,-25,-30,-21,-58,-59,-58,-61,-120,-120,-131,-127,-132,-128,-129,-129,-186,-185,-178,-98,-453,-411,-451,-439,-448,-441,-441,-439,-385,-232,-204,0,-394,-262,-262,-254,-261,-254,-255,-246,-222,-203,-161,-22,-51,0,-51,0,-51,0,-52,-52,-76,0,0,0,0,0,0,0,0,0]} 1. e4 {[%emt 0:00:03]} c6 {[%emt 0:00:07]} 2. Nf3 {[%emt 0:00:19]} d5 {[%emt 0:00:05]} 3. Nc3 {[%emt 0:00:15]} dxe4 {[%emt 0:00:19]} 4. Nxe4 {[%emt 0:00:11]} Nf6 {[%emt 0:00:06]} 5. Nxf6+ {[%emt 0:00:25]} exf6 {[%emt 0:00:05]} 6. Bc4 {[%emt 0:03:26]} Bd6 {[%emt 0:01:16]} 7. d4 {[%emt 0:00:47]} Bg4 {[%emt 0:01:24]} 8. h3 {[%emt 0:02:27]} Bh5 {[%emt 0:01:45]} 9. Be3 {[%emt 0:02:10]} Nd7 {[%emt 0:00:39][%cal Bb8d7,Bd7b6,Bb6d5][%mdl 32]} 10. c3 {[%emt 0:01:33]} Nb6 {[%emt 0:00:44]} 11. Bd3 {[%emt 0:00:59]} Nd5 {[%emt 0:00:30]} 12. Bd2 {[%emt 0:05:51]} Qe7+ {[%emt 0:04:34]} 13. Qe2 {[%emt 0:02:28]} Bxf3 {[%emt 0:00:28]} 14. Qxe7+ {[%emt 0:00:28]} Kxe7 {[%emt 0:00:26]} 15. gxf3 {[%emt 0:00:11]} Bf4 {[%emt 0:00:13]} 16. O-O-O {[%emt 0:00:28][%cal Ba1d1,Bd1e1,Be1e4][%mdl 32]} Rhe8 {[%emt 0:04:36]} 17. Rde1+ {[%emt 0:06:30]} Kf8 {[%emt 0:01:58]} 18. Re4 {[%emt 0:00:24]} Bxd2+ {[%emt 0:00:59]} 19. Kxd2 {[%emt 0:00:07]} g6 {[%emt 0:00:28]} 20. Rhe1 {[%emt 0:06:59]} f5 {[%emt 0:04:26]} 21. Rxe8+ {[%emt 0:03:41]} Rxe8 {[%emt 0:01:39]} 22. Rxe8+ {[%emt 0:00:07]} (22. Rg1 $15) 22... Kxe8 $15 {[%emt 0:00:06][%mdl 4096] Endgame. KB-KN} 23. c4 {[%emt 0:00:13]} Nf4 {[%emt 0:00:24]} 24. Bf1 {[%emt 0:00:07]} Ke7 {[%emt 0:00:37]} 25. Ke3 {[%emt 0:00:19]} g5 {[%emt 0:00:36]} 26. b4 {[%emt 0:02:52]} (26. Bd3 $17 {might work better.}) 26... Kd6 {[%emt 0:01:08]} 27. a4 {[%emt 0:01:00]} b6 {[%emt 0:00:35]} (27... h6 $19 28. Kd2 h5 29. c5+ Kc7) 28. b5 $2 {[%emt 0:13:24][%mdl 8192] [#]} (28. Bd3 $17 {is a better chance.}) 28... c5 $19 {[%emt 0:06:21]} 29. d5 {[%emt 0:01:32]} Ke5 {[%emt 0:00:02]} 30. Bd3 {[%emt 0:05:33]} h6 {[%emt 0:02:56]} 31. Bf1 {[%emt 0:03:57]} f6 {[%emt 0:02:56]} 32. Kd2 {[%emt 0:02:25]} Kd4 {[%emt 0:00:38]} 33. Kc2 {[%emt 0:01:12]} Ke5 $2 {[%emt 0:06:23] [#]} (33... h5 34. d6 Ke5) 34. Kd2 $1 {[%emt 0:02:29]} Ng6 {[%emt 0:00:24]} 35. Ke3 {[%emt 0:00:51]} f4+ {[%emt 0:00:44]} 36. Kd2 {[%emt 0:00:55]} Nh4 {[%emt 0:01:27]} 37. Be2 {[%emt 0:00:50]} Nf5 {[%emt 0:00:12]} 38. Kc3 {[%emt 0:04:38]} Nd4 {[%emt 0:01:03]} 39. Bd1 {[%emt 0:00:12]} f5 {[%emt 0:01:23]} (39... h5 $19 {Strongly threatening ...h4.} 40. Kb2 Nf5) 40. Kd2 {[%emt 0:00:45][%cal Oh3h4]} Kf6 {[%emt 0:01:12]} (40... h5 $1 $15) 41. Ke1 {[%emt 0:00:32]} (41. h4 $11) 41... Kg7 {[%emt 0:01:18]} (41... h5 $1 $15) 42. Kf1 {[%emt 0:01:30]} (42. h4 $1 $11) 42... Kg6 {[%emt 0:00:08]} (42... h5 $1 $15) 43. Ke1 {[%emt 0:00:29]} (43. h4 $1 $11) 43... h5 $1 $15 {[%emt 0:02:02]} 44. Kf1 {[%emt 0:00:33]} h4 {[%emt 0:03:15]} (44... Kf6 $17) 45. Ke1 $11 {[%emt 0:01:40] The position is equal.} Kf6 {[%emt 0:00:01]} 46. Kd2 {[%emt 0:01:34]} Ke5 {[%emt 0:00:03]} 47. Kc3 {[%emt 0:00:40]} Kd6 {[%emt 0:22:26]} 48. Kd2 {[%emt 0:00:35]} Ke5 {[%emt 0:00:10] Black had all chances to win.   Weighted Error Value: White=0.19 (very precise) /Black=0.31.  Loses game:     	White=1     	---        Mistake:       	White=5     	Black=7      Inaccurate:     	White=3     	Black=2      OK:         	White=15    	Black=14     Best:        	White=1     	Black=1      Strong:       	White=1     	Black=1} 1/2-1/2

[Event "ESP-ch U2000 2024"]
[Site "Albacete"]
[Date "2024.08.28"]
[Round "3.7"]
[White "Perez Gonzalez, Daniel"]
[Black "Bricio Garcia De La Torre, Jesus"]
[Result "1-0"]
[ECO "B92"]
[WhiteElo "1981"]
[BlackElo "1887"]
[Annotator "TA"]
[PlyCount "81"]
[EventDate "2024.08.27"]
[EventType "swiss"]
[EventCountry "ESP"]
[SourceTitle "playchess.com"]
[Source "ChessBase"]
[SourceQuality "1"]
[TimeControl "5400+30"]

{[%evp 22,80,8,14,40,33,31,10,35,-1,21,20,29,8,102,104,161,128,194,203,283,211,186,231,194,72,73,19,11,16,5,-29,7,10,40,8,0,15,37,26,36,44,38,29,54,19,28,3,3,3,47,25,20,0,29979,29980,29990,29991,29998,29999,29999]} 1. e4 {[%emt 0:00:06]} c5 {[%emt 0:00:06]} 2. Nf3 {[%emt 0:01:14]} d6 {[%emt 0:00:05]} 3. d4 {[%emt 0:00:30]} cxd4 {[%emt 0:00:06]} 4. Nxd4 {[%emt 0:00:42]} Nf6 {[%emt 0:00:06]} 5. Nc3 {[%emt 0:00:05]} a6 {[%emt 0:00:04]} 6. Be2 {[%emt 0:02:27]} e5 {[%emt 0:00:26]} 7. Nb3 {[%emt 0:00:24]} Be7 {[%emt 0:01:00]} 8. Be3 {[%emt 0:07:35]} Be6 {[%emt 0:03:11]} 9. Nd5 {[%emt 0:00:07]} Nxd5 {[%emt 0:01:40]} 10. exd5 {[%emt 0:01:47]} Bf5 {[%emt 0:00:33]} 11. Qd2 {[%emt 0:01:58]} Nd7 {[%emt 0:02:36]} 12. O-O {[%emt 0:00:52]} Rc8 {[%emt 0:00:50]} 13. c4 {[%emt 0:01:33]} O-O {[%emt 0:05:27]} 14. Rac1 {[%emt 0:05:44]} h6 {[%emt 0:05:26] The position is equal.} 15. Rfd1 {[%emt 0:05:03]} Bg5 {[%emt 0:01:36]} 16. Bxg5 {[%emt 0:03:11]} Qxg5 {[%emt 0:00:07]} 17. Qb4 {[%emt 0:07:12]} Bh3 {[%emt 0:04:47] [#]} (17... Qg6 $11) 18. Bf1 $1 $16 {[%emt 0:02:59]} Nc5 {[%emt 0:19:19]} (18... Qg6 $16) 19. Nxc5 $18 {[%emt 0:11:47]} dxc5 {[%emt 0:01:42]} (19... Rxc5 $16 20. Qxb7 a5) 20. Qxb7 {[%emt 0:12:49]} f5 {[%emt 0:06:51]} 21. Kh1 {[%emt 0:09:46]} ({Much less strong is} 21. Qxa6 $6 f4 $18) 21... Bg4 {[%emt 0:00:32]} 22. f3 {[%emt 0:00:18]} Bh5 {[%emt 0:04:35]} 23. Qxa6 {[%emt 0:03:20]} (23. d6 $18 {[%cal Ob2b4] has better winning chances. Threatens to win with b4!} e4 24. b4 (24. Qxa6 exf3 25. Rc2 fxg2+ 26. Rxg2 Bf3 $16)) 23... e4 $16 {[%emt 0:00:48]} 24. Be2 {[%emt 0:11:53]} (24. Rc3 $16) 24... Qe3 $1 $11 {[%emt 0:03:16][%csl LRe2,LRf3]} 25. Re1 {[%emt 0:00:22] Black must now prevent Qa4.} Qf2 {[%emt 0:00:51] And now ...Rce8 would win.} 26. Qe6+ {[%emt 0:06:43]} Kh8 {[%emt 0:00:02] Strongly threatening ...Rce8.} 27. Qe5 {[%emt 0:00:03] aiming for Qg3.} exf3 {[%emt 0:01:47]} 28. Bxf3 {[%emt 0:00:57]} Bxf3 {[%emt 0:02:19]} 29. gxf3 {[%emt 0:00:24]} Qxf3+ {[%emt 0:00:04]} 30. Kg1 {[%emt 0:00:01]} f4 {[%emt 0:00:59]} 31. Qe2 {[%emt 0:00:30]} Qh3 {[%emt 0:02:38][%cal Oc8e8]} 32. Qg2 {[%emt 0:01:42]} Qh4 {[%emt 0:00:31]} 33. Qf3 {[%emt 0:00:59]} Rce8 {[%emt 0:01:16]} 34. Rxe8 {[%emt 0:01:39]} Rxe8 {[%emt 0:00:01][%mdl 4096] Endgame. KQR-KQR} 35. Rf1 $36 {[%emt 0:00:01][%mdl 2048] White has the initiative.} Qf6 {[%emt 0:03:05]} 36. b3 {[%emt 0:00:46]} g5 {[%emt 0:00:02][%cal Bg7g5,Bg5g4][%mdl 32]} 37. Kg2 {[%emt 0:00:56]} Re3 $2 {[%emt 0:00:30][%mdl 8192] [#]} (37... Kg7 $11) 38. Qxe3 {[%emt 0:00:05] White mates.} f3+ {[%emt 0:02:10]} 39. Rxf3 {[%emt 0:00:14]} Qe7 {[%emt 0:00:03]} 40. Qxe7 {[%emt 0:00:10][%cal Rf3f8]} g4 {[%emt 0:00:01]} 41. Rf8# {Weighted Error Value: White=0.19 (very precise) /Black=0.40.  Loses game:     	---       	Black=1      Mistake:       	White=2     	Black=3      Inaccurate:     	White=4     	Black=3      OK:         	White=12    	Black=6      Best:        	White=1     	Black=2      Strong:       	White=1     	Black=1} 1-0